lending/lending_fUSD_20240207
["ID","MTS","AMOUNT","RATE_DAILY","PERIOD"]
[313439772,1707347489748,-500.0,0.00049863,61]
[313439773,1707347489758,-500.0,0.00049863,61]
[313439774,1707347489767,-500.0,0.00049863,61]
[313439775,1707347489776,-409.31908029,0.00049863,61]
[313439776,1707347489786,-500.0,0.00049863,61]
[313439777,1707347489795,-1387.15,0.00049863,61]
[313439778,1707347489804,-500.0,0.00049863,61]
[313439779,1707347489814,-500.0,0.00049863,61]
[313439780,1707347489823,-500.0,0.00049863,61]
[313439781,1707347489833,-500.0,0.00049863,61]
[313439782,1707347489842,-500.0,0.00049863,61]
[313439783,1707347489852,-1030.92,0.00049863,61]
[313439784,1707347489861,-500.0,0.00049863,61]
[313439785,1707347489870,-506.5,0.00049863,61]
[313439786,1707347489880,-482.33365517,0.00049863,61]
[313439787,1707347489889,-500.0,0.00049863,61]
[313439788,1707347489899,-504.52,0.00049863,61]
[313439789,1707347489908,-837.36,0.00049863,61]
[313439790,1707347489917,-500.0,0.00049863,61]
[313439791,1707347489927,-823.28,0.00049863,61]
[313439792,1707347489936,-1199.97,0.00049863,61]
[313439793,1707347489945,-500.0,0.00049863,61]
[313439794,1707347489954,-500.0,0.00049863,61]
[313439795,1707347489963,-1675.14,0.00049863,61]
[313439796,1707347489972,-690.49,0.00049863,61]
[313439797,1707347489981,-500.0,0.00049863,61]
[313439798,1707347489990,-500.0,0.00049863,61]
[313439799,1707347490000,-500.0,0.00049863,61]
[313439800,1707347490012,-868.52,0.00049863,61]
[313439801,1707347490022,-1013.87,0.00049863,31]
[313439802,1707347490031,-500.0,0.00049863,61]
[313439803,1707347490041,-435.77562813,0.00049863,61]
[313439804,1707347490050,-532.3,0.00049863,61]
[313439805,1707347490059,-1000.0,0.00049863,7]
[313439806,1707347490068,-878.73,0.00049863,61]
[313439807,1707347490077,-930.05,0.00049863,61]
[313439808,1707347490087,-681.7,0.00049863,61]
[313439809,1707347490096,-500.0,0.00049863,61]
[313439810,1707347490105,-153.80535133,0.00049863,61]
[313439811,1707347490114,-572.49556673,0.00049863,61]
[313439812,1707347490124,-628.61448174,0.00049863,61]
[313439813,1707347490133,-500.0,0.00049863,61]
[313439814,1707347490142,-500.0,0.00049863,61]
[313439815,1707347490151,-767.16,0.00049863,61]
[313439816,1707347490161,-600.25,0.00049863,61]
[313439817,1707347490170,-500.0,0.00049863,61]
[313439818,1707347490179,-533.21,0.00049863,61]
[313439819,1707347490188,-500.0,0.00049863,61]
[313439820,1707347490197,-500.0,0.00049863,61]
[313439821,1707347490207,-926.27,0.00049863,61]
[313439822,1707347490216,-500.0,0.00049863,61]
[313439823,1707347490225,-2608.45,0.00049863,31]
[313439824,1707347490235,-500.0,0.00049863,61]
[313439825,1707347490246,-500.0,0.00049863,61]
[313439826,1707347490255,-500.0,0.00049863,61]
[313439827,1707347490265,-1732.8,0.00049863,61]
[313439828,1707347490274,-500.0,0.00049863,61]
[313439829,1707347490283,-500.0,0.00049863,61]
[313439830,1707347490292,-1769.21,0.00049863,61]
[313439831,1707347490301,-500.0,0.00049863,61]
[313439832,1707347490310,-1421.25,0.00049863,61]
[313439833,1707347490319,-500.0,0.00049863,61]
[313439834,1707347490328,-632.32053557,0.00049863,61]
[313439835,1707347490337,-500.0,0.00049863,61]
[313439836,1707347490346,-615.44,0.00049863,61]
[313439837,1707347490355,-500.0,0.00049863,61]
[313439838,1707347490364,-453.66499157,0.00049863,61]
[313439839,1707347490374,-695.44,0.00049863,61]
[313439840,1707347490383,-465.7738547,0.00049863,61]
[313439841,1707347490393,-500.0,0.00049863,61]
[313439842,1707347490402,-202.03955448,0.00049863,61]
[313439843,1707347490411,-500.0,0.00049863,61]
[313439844,1707347490421,-500.0,0.00049863,61]
[313439845,1707347490430,-500.0,0.00049863,61]
[313439846,1707347490439,-500.0,0.00049863,61]
[313439847,1707347490448,-500.0,0.00049863,61]
[313439848,1707347490457,-427.16132405,0.00049863,61]
[313439849,1707347490466,-645.9,0.00049863,7]
[313439850,1707347490475,-659.38,0.00049863,61]
[313439851,1707347490484,-500.0,0.00049863,61]
[313439852,1707347490493,-1777.05,0.00049863,61]
[313439853,1707347490502,-500.0,0.00049863,61]
[313439854,1707347490511,-500.0,0.00049863,61]
[313439855,1707347490520,-500.0,0.00049863,61]
[313439856,1707347490529,-539.01,0.00049863,61]
[313439857,1707347490538,-500.0,0.00049863,61]
[313439858,1707347490548,-1544.48,0.00049863,61]
[313439859,1707347490557,-1435.04,0.00049863,61]
[313439860,1707347490566,-500.0,0.00049863,61]
[313439861,1707347490575,-539.7,0.00049863,61]
[313439862,1707347490584,-645.69,0.00049863,61]
[313439863,1707347490593,-500.0,0.00049863,61]
[313439864,1707347490602,-709.73,0.00049863,61]
[313439865,1707347490611,-500.0,0.00049863,61]
[313439866,1707347490620,-500.0,0.00049863,61]
[313439867,1707347490630,-500.0,0.00049863,61]
[313439868,1707347490639,-740.83,0.00049863,2]
[313439869,1707347490649,-500.0,0.00049863,61]
[313439870,1707347490658,-1656.01,0.00049863,61]
[313439871,1707347490667,-1199.69,0.00049863,61]
[313439872,1707347490676,-1492.44,0.00049863,61]
[313439873,1707347490685,-500.0,0.00049863,61]
[313439874,1707347490694,-500.0,0.00049863,61]
[313439875,1707347490703,-788.21,0.00049863,61]
[313439876,1707347490713,-1265.23,0.00049863,61]
[313439877,1707347490722,-500.0,0.00049863,61]
[313439878,1707347490731,-1083.11,0.00049863,61]
[313439879,1707347490740,-233.51571618,0.00049863,61]
[313439880,1707347490749,-687.22,0.00049863,61]
[313439881,1707347490759,-500.0,0.00049863,61]
[313439882,1707347490768,-500.0,0.00049863,61]
[313439883,1707347490778,-500.0,0.00049863,61]
[313439884,1707347490787,-500.0,0.00049863,61]
[313439885,1707347490797,-500.0,0.00049863,61]
[313439886,1707347490806,-517.85,0.00049863,61]
[313439887,1707347490815,-1979.44,0.00049863,61]
[313439888,1707347490825,-779.42,0.00049863,61]
[313439889,1707347490834,-536.91,0.00049863,61]
[313439890,1707347490843,-1371.35,0.00049863,31]
[313439891,1707347490853,-678.28,0.00049863,61]
[313439892,1707347490862,-500.0,0.00049863,61]
[313439893,1707347490871,-553.4,0.00049863,61]
[313439894,1707347490881,-500.0,0.00049863,61]
[313439895,1707347490891,-726.06,0.00049863,61]
[313439896,1707347490900,-563.43,0.00049863,61]
[313439897,1707347490910,-1615.47,0.00049863,61]
[313439898,1707347490920,-1043.14,0.00049863,61]
[313439899,1707347490930,-500.0,0.00049863,61]
[313439900,1707347490939,-500.0,0.00049863,61]
[313439901,1707347490948,-1175.97,0.00049863,61]
[313439902,1707347490957,-500.0,0.00049863,61]
[313439903,1707347490966,-510.29,0.00049863,61]
[313439904,1707347490975,-500.0,0.00049863,61]
[313439905,1707347490985,-500.0,0.00049863,61]
[313439906,1707347490993,-500.0,0.00049863,61]
[313439907,1707347491004,-500.0,0.00049863,61]
[313439908,1707347491014,-1193.33,0.00049863,61]
[313439909,1707347491023,-500.0,0.00049863,61]
[313439910,1707347491032,-500.0,0.00049863,61]
[313439911,1707347491225,-500.0,0.00049863,61]
[313439912,1707347491235,-500.0,0.00049863,61]
[313439913,1707347491245,-874.9,0.00049863,61]
[313439914,1707347491254,-770.71,0.00049863,61]
[313439915,1707347491264,-500.0,0.00049863,61]
[313439916,1707347491273,-573.31,0.00049863,61]
[313439917,1707347491282,-500.0,0.00049863,61]
[313439918,1707347491292,-1088.76,0.00049863,61]
[313439919,1707347491301,-1386.24,0.00049863,61]
[313439920,1707347491311,-2593.53,0.00049863,30]
[313439921,1707347491320,-500.0,0.00049863,61]
[313439922,1707347491329,-500.0,0.00049863,61]
[313439923,1707347491339,-500.0,0.00049863,61]
[313439924,1707347491348,-500.0,0.00049863,61]
[313439925,1707347491357,-652.45,0.00049863,61]
[313439926,1707347491366,-500.0,0.00049863,61]
[313439927,1707347491376,-500.0,0.00049863,61]
[313439928,1707347491385,-500.0,0.00049863,61]
[313439929,1707347491395,-500.0,0.00049863,61]
[313439930,1707347491405,-500.0,0.00049863,61]
[313439931,1707347491414,-2700.69,0.00049863,61]
[313439932,1707347491424,-968.52,0.00049863,61]
[313439933,1707347491433,-500.0,0.00049863,61]
[313439934,1707347491442,-742.25,0.00049863,61]
[313439935,1707347491451,-723.52,0.00049863,61]
[313439936,1707347491461,-500.0,0.00049863,61]
[313439937,1707347491470,-1034.49,0.00049863,61]
[313439938,1707347491479,-500.0,0.00049863,61]
[313439939,1707347491489,-500.0,0.00049863,61]
[313439940,1707347491498,-655.03,0.00049863,61]
[313439941,1707347491509,-1012.28,0.00049863,61]
[313439942,1707347491522,-500.0,0.00049863,61]
[313439943,1707347491531,-436.97360312,0.00049863,61]
[313439944,1707347491541,-3466.62,0.00049863,61]
[313439945,1707347491550,-500.0,0.00049863,61]
[313439946,1707347491559,-810.34,0.00049863,61]
[313439947,1707347491569,-1031.85,0.00049863,61]
[313439948,1707347491578,-1307.63,0.00049863,61]
[313439949,1707347491587,-500.0,0.00049863,61]
[313439950,1707347491598,-547.91,0.00049863,61]
[313439951,1707347491608,-596.49,0.00049863,61]
[313439952,1707347491617,-938.29,0.00049863,61]
[313439953,1707347491627,-500.0,0.00049863,61]
[313439954,1707347491637,-500.0,0.00049863,60]
[313439955,1707347491646,-500.0,0.00049863,61]
[313439956,1707347491655,-500.0,0.00049863,61]
[313439957,1707347491665,-2318.34,0.00049863,61]
[313439958,1707347491674,-473.18565011,0.00049863,61]
[313439959,1707347491683,-500.0,0.00049863,61]
[313439960,1707347491693,-500.0,0.00049863,61]
[313439961,1707347491702,-1379.71,0.00049863,61]
[313439962,1707347491711,-500.0,0.00049863,61]
[313439963,1707347491720,-500.0,0.00049863,61]
[313439964,1707347491730,-500.0,0.00049863,61]
[313439965,1707347491740,-500.0,0.00049863,61]
[313439966,1707347491750,-7090.44,0.00049863,61]
[313439967,1707347491759,-500.0,0.00049863,61]
[313439968,1707347491769,-500.0,0.00049863,61]
[313439969,1707347491778,-550.5425237,0.00049863,61]
[313439970,1707347491787,-551.34,0.00049863,61]
[313439971,1707347491797,-999.68,0.00049863,61]
[313439972,1707347491806,-500.0,0.00049863,61]
[313439973,1707347491815,-1026.8,0.00049863,61]
[313439974,1707347491824,-500.0,0.00049863,61]
[313439975,1707347491834,-5027.68,0.00049863,61]
[313439976,1707347491845,-500.0,0.00049863,61]
[313439977,1707347491855,-500.0,0.00049863,61]
[313439978,1707347491864,-650.61,0.00049863,61]
[313439979,1707347491874,-547.55,0.00049863,61]
[313439980,1707347491883,-500.0,0.00049863,61]
[313439981,1707347491892,-500.0,0.00049863,61]
[313439982,1707347491901,-531.32,0.00049863,61]
[313439983,1707347491911,-500.0,0.00049863,61]
[313439984,1707347491921,-1570.26,0.00049863,61]
[313439985,1707347491930,-500.0,0.00049863,61]
[313439986,1707347491940,-10501.63,0.00049863,61]
[313439987,1707347491949,-1592.24,0.00049863,61]
[313439988,1707347491958,-699.2,0.00049863,61]
[313439989,1707347491968,-500.0,0.00049863,61]
[313439990,1707347491977,-500.0,0.00049863,61]
[313439991,1707347491987,-1116.6,0.00049863,61]
[313439992,1707347491996,-500.0,0.00049863,61]
[313439993,1707347492006,-750.16,0.00049863,61]
[313439994,1707347492016,-923.63,0.00049863,61]
[313439995,1707347492026,-3906.72,0.00049863,61]
[313439996,1707347492035,-500.0,0.00049863,61]
[313439997,1707347492045,-4016.41,0.00049863,61]
[313439998,1707347492054,-500.0,0.00049863,61]
[313439999,1707347492064,-500.0,0.00049863,61]
[313440000,1707347492073,-6471.24,0.00049863,61]
[313440001,1707347492084,-1549.35,0.00049863,61]
[313440002,1707347492093,-886.29,0.00049863,61]
[313440003,1707347492103,-841.38,0.00049863,61]
[313440004,1707347492112,-500.0,0.00049863,61]
[313440005,1707347492122,-500.0,0.00049863,61]
[313440006,1707347492131,-500.0,0.00049863,61]
[313440007,1707347492141,-1555.84,0.00049863,61]
[313440008,1707347492150,-1152.99,0.00049863,61]
[313440009,1707347492159,-500.0,0.00049863,61]
[313440010,1707347492169,-1548.24,0.00049863,61]
[313440011,1707347492179,-500.0,0.00049863,61]
[313440012,1707347492188,-500.0,0.00049863,61]
[313440013,1707347492198,-500.0,0.00049863,61]
[313440014,1707347492207,-534.97,0.00049863,61]
[313440015,1707347492217,-12781.73,0.00049863,61]
[313440016,1707347492226,-812.43,0.00049863,61]
[313440017,1707347492236,-500.0,0.00049863,5]
[313440018,1707347492246,-3890.54,0.00049863,61]
[313440019,1707347492255,-500.0,0.00049863,61]
[313440020,1707347492265,-1835.07,0.00049863,61]
[313440021,1707347492275,-500.07,0.00049863,61]
[313440022,1707347492284,-345.27826768,0.00049863,61]
[313440023,1707347492293,-500.0,0.00049863,61]
[313440024,1707347492303,-500.0,0.00049863,61]
[313440025,1707347492313,-1323.04,0.00049863,61]
[313440026,1707347492323,-580.42,0.00049863,61]
[313440027,1707347492333,-500.0,0.00049863,61]
[313440028,1707347492342,-7177.08,0.00049863,61]
[313440029,1707347492352,-500.0,0.00049863,61]
[313440030,1707347492362,-728.56,0.00049863,61]
[313440031,1707347492371,-500.0,0.00049863,61]
[313440032,1707347492381,-393.51707929,0.00049863,61]
[313440033,1707347492390,-1728.03,0.00049863,61]
[313440034,1707347492399,-633.03,0.00049863,61]
[313440035,1707347492409,-3783.79,0.00049863,61]
[313440036,1707347492418,-500.0,0.00049863,61]
[313440037,1707347492428,-2104.05,0.00049863,5]
[313440038,1707347492438,-500.0,0.00049863,61]
[313440039,1707347492447,-751.21,0.00049863,61]
[313440040,1707347492457,-500.0,0.00049863,61]
[313440041,1707347492467,-1982.88,0.00049863,61]
[313440042,1707347492477,-500.0,0.00049863,61]
[313440043,1707347492486,-500.0,0.00049863,61]
[313440044,1707347492497,-1495.36,0.00049863,61]
[313440045,1707347492506,-4092.19,0.00049863,61]
[313440046,1707347492516,-2548.02,0.00049863,61]
[313440047,1707347492526,-500.0,0.00049863,61]
[313440048,1707347492535,-13188.12,0.00049863,61]
[313440049,1707347492545,-2658.66,0.00049863,61]
[313440050,1707347492555,-500.0,0.00049863,61]
[313440051,1707347492564,-1169.7,0.00049863,61]
[313440052,1707347492573,-500.0,0.00049863,61]
[313440053,1707347492583,-510.73,0.00049863,61]
[313440054,1707347492592,-500.0,0.00049863,61]
[313440055,1707347492602,-500.0,0.00049863,61]
[313440056,1707347492611,-500.0,0.00049863,61]
[313440057,1707347492621,-819.7,0.00049863,61]
[313440058,1707347492631,-1213.41,0.00049863,61]
[313440059,1707347492640,-500.0,0.00049863,61]
[313440060,1707347492651,-500.0,0.00049863,61]
[313440061,1707347492660,-979.46,0.00049863,61]
[313440062,1707347492670,-1090.89,0.00049863,61]
[313440063,1707347492679,-190.54422199,0.00049863,61]
[313440064,1707347492689,-15411.08,0.00049863,61]
[313440065,1707347492699,-10890.57,0.00049863,61]
[313440066,1707347492708,-14146.48,0.00049863,61]
[313440067,1707347492718,-995.52,0.00049863,61]
[313440068,1707347492727,-591.09,0.00049863,61]
[313440069,1707347492737,-500.0,0.00049863,61]
[313440070,1707347492746,-586.96,0.00049863,61]
[313440071,1707347492756,-646.75,0.00049863,61]
[313440072,1707347492765,-587.64,0.00049863,61]
[313440073,1707347492775,-730.49,0.00049863,61]
[313440074,1707347492785,-3319.85,0.00049863,61]
[313440075,1707347492794,-892.51,0.00049863,61]
[313440076,1707347492804,-500.0,0.00049863,30]
[313440077,1707347492814,-500.0,0.00049863,61]
[313440078,1707347492824,-1138.36,0.00049863,61]
[313440079,1707347492833,-755.46,0.00049863,61]
[313440080,1707347492843,-2767.87,0.00049863,61]
[313440081,1707347492853,-782.81,0.00049863,61]
[313440082,1707347492862,-500.0,0.00049863,61]
[313440083,1707347492872,-500.0,0.00049863,61]
[313440084,1707347492882,-3455.92,0.00049863,61]
[313440085,1707347492891,-500.0,0.00049863,61]
[313440086,1707347492901,-6467.05,0.00049863,61]
[313440087,1707347492911,-1017.23,0.00049863,61]
[313440088,1707347492921,-1192.09,0.00049863,61]
[313440089,1707347492930,-500.0,0.00049863,61]
[313440090,1707347492940,-494.83977001,0.00049863,61]
[313440091,1707347492949,-500.0,0.00049863,61]
[313440092,1707347492959,-534.39,0.00049863,61]
[313440093,1707347492968,-500.0,0.00049863,61]
[313440094,1707347492978,-500.0,0.00049863,61]
[313440095,1707347492987,-500.0,0.00049863,61]
[313440096,1707347492997,-298.14366147,0.00049863,61]
[313440097,1707347493009,-500.0,0.00049863,61]
[313440098,1707347493018,-4434.79,0.00049863,61]
[313440099,1707347493028,-500.0,0.00049863,61]
[313440100,1707347493037,-570.13919053,0.00049863,61]
[313440101,1707347493046,-500.0,0.00049863,61]
[313440102,1707347493056,-2683.22,0.00049863,61]
[313440103,1707347493065,-1408.58,0.00049863,61]
[313440104,1707347493075,-951.82,0.00049863,61]
[313440105,1707347493086,-389.4243875,0.00049863,61]
[313440106,1707347493097,-704.19,0.00049863,61]
[313440107,1707347493106,-168.61900878,0.00049863,61]
[313440108,1707347493115,-500.0,0.00049863,61]
[313440109,1707347493125,-500.0,0.00049863,61]
[313440110,1707347493134,-551.99,0.00049863,61]
[313440111,1707347493144,-1301.3,0.00049863,61]
[313440112,1707347493154,-500.0,0.00049863,61]
[313440113,1707347493163,-775.57,0.00049863,61]
[313440114,1707347493174,-5327.22,0.00049863,61]
[313440115,1707347493183,-2638.6,0.00049863,61]
[313440116,1707347493193,-1452.28,0.00049863,61]
[313440117,1707347493203,-1386.03,0.00049863,61]
[313440118,1707347493213,-500.0,0.00049863,61]
[313440119,1707347493223,-500.0,0.00049863,61]
[313440120,1707347493233,-197.32,0.00049863,61]
[313440121,1707347493243,-500.0,0.00049863,61]
[313440122,1707347493252,-500.0,0.00049863,61]
[313440123,1707347493262,-1044.99,0.00049863,61]
[313440124,1707347493347,-1334.41,0.00049863,61]
[313440125,1707347493357,-965.51,0.00049863,61]
[313440126,1707347493367,-500.0,0.00049863,61]
[313440127,1707347493377,-9060.5,0.00049863,61]
[313440128,1707347493386,-500.0,0.00049863,61]
[313440129,1707347493395,-500.0,0.00049863,61]
[313440130,1707347493405,-500.0,0.00049863,61]
[313440131,1707347493414,-1645.79,0.00049863,61]
[313440132,1707347493424,-500.0,0.00049863,61]
[313440133,1707347493434,-500.0,0.00049863,61]
[313440134,1707347493444,-500.0,0.00049863,61]
[313440135,1707347493453,-1212.78,0.00049863,61]
[313440136,1707347493463,-656.32497102,0.00049863,120]
[313440137,1707347493473,-500.0,0.00049863,61]
[313440138,1707347493483,-1538.22,0.00049863,61]
[313440139,1707347493493,-2000.0,0.00049863,120]
[313440140,1707347493502,-912.48,0.00049863,61]
[313440141,1707347493511,-2474.47,0.00049863,61]
[313440142,1707347493521,-500.0,0.00049863,61]
[313440143,1707347493530,-1040.51,0.00049863,61]
[313440144,1707347493540,-6163.74,0.00049863,61]
[313440145,1707347493549,-500.0,0.00049863,61]
[313440146,1707347493558,-500.0,0.00049863,61]
[313440147,1707347493568,-500.0,0.00049863,61]
[313440148,1707347493577,-500.0,0.00049863,61]
[313440149,1707347493586,-3096.57,0.00049863,61]
[313440150,1707347493595,-500.0,0.00049863,61]
[313440151,1707347493604,-347.08652614,0.00049863,61]
[313440152,1707347493614,-500.0,0.00049863,61]
[313440153,1707347493623,-3262.84,0.00049863,61]
[313440154,1707347493632,-500.0,0.00049863,61]
[313440155,1707347493642,-500.0,0.00049863,61]
[313440156,1707347493651,-500.0,0.00049863,61]
[313440157,1707347493660,-4620.53,0.00049863,61]
[313440158,1707347493670,-605.03,0.00049863,61]
[313440159,1707347493679,-2571.02,0.00049863,61]
[313440160,1707347493689,-5162.98,0.00049863,61]
[313440161,1707347493697,-777.37,0.00049863,61]
[313440162,1707347493706,-500.0,0.00049863,61]
[313440163,1707347493715,-43223.85,0.00049863,61]
[313440164,1707347493724,-500.0,0.00049863,61]
[313440165,1707347493734,-500.0,0.00049863,61]
[313440166,1707347493743,-500.0,0.00049863,61]
[313440167,1707347493752,-500.0,0.00049863,61]
[313440168,1707347493761,-1341.56,0.00049863,61]
[313440169,1707347493771,-500.0,0.00049863,120]
[313440170,1707347493781,-500.0,0.00049863,61]
[313440171,1707347493790,-2451.8,0.00049863,61]
[313440172,1707347493799,-500.0,0.00049863,61]
[313440173,1707347493809,-2551.1,0.00049863,61]
[313440174,1707347493818,-705.67,0.00049863,61]
[313440175,1707347493827,-468.18564124,0.00049863,61]
[313440176,1707347493837,-542.50185696,0.00049863,61]
[313440177,1707347493847,-897.07,0.00049863,61]
[313440178,1707347493856,-642.66,0.00049863,61]
[313440179,1707347493865,-500.0,0.00049863,61]
[313440180,1707347493874,-500.0,0.00049863,61]
[313440181,1707347493883,-3166.75,0.00049863,61]
[313440182,1707347493893,-500.0,0.00049863,61]
[313440183,1707347493902,-1994.74,0.00049863,61]
[313440184,1707347493911,-892.29,0.00049863,61]
[313440185,1707347493921,-244.3041266,0.00049863,61]
[313440186,1707347493930,-2396.09,0.00049863,61]
[313440187,1707347493939,-1037.14,0.00049863,61]
[313440188,1707347493948,-680.03,0.00049863,61]
[313440189,1707347493957,-25185.74,0.00049863,61]
[313440190,1707347493966,-500.0,0.00049863,61]
[313440191,1707347493975,-2909.01,0.00049863,61]
[313440192,1707347493984,-500.0,0.00049863,61]
[313440193,1707347493993,-3203.86,0.00049863,61]
[313440194,1707347494003,-535.88,0.00049863,61]
[313440195,1707347494016,-500.0,0.00049863,61]
[313440196,1707347494025,-2960.25,0.00049863,61]
[313440197,1707347494034,-500.0,0.00049863,61]
[313440198,1707347494043,-500.0,0.00049863,61]
[313440199,1707347494053,-1727.02,0.00049863,61]
[313440200,1707347494063,-6381.13,0.00049863,61]
[313440201,1707347494072,-3183.44,0.00049863,61]
[313440202,1707347494081,-693.07,0.00049863,61]
[313440203,1707347494091,-500.0,0.00049863,61]
[313440204,1707347494101,-500.0,0.00049863,61]
[313440205,1707347494110,-500.0,0.00049863,61]
[313440206,1707347494120,-804.8,0.00049863,61]
[313440207,1707347494130,-500.0,0.00049863,61]
[313440208,1707347494139,-1176.69,0.00049863,61]
[313440209,1707347494149,-3540.6,0.00049863,61]
[313440210,1707347494158,-500.0,0.00049863,61]
[313440211,1707347494168,-500.0,0.00049863,61]
[313440212,1707347494178,-508.68,0.00049863,61]
[313440213,1707347494187,-500.0,0.00049863,61]
[313440214,1707347494196,-500.0,0.00049863,61]
[313440215,1707347494206,-500.0,0.00049863,61]
[313440216,1707347494216,-500.0,0.00049863,61]
[313440217,1707347494226,-3372.12,0.00049863,61]
[313440218,1707347494235,-4463.56,0.00049863,61]
[313440219,1707347494245,-711.04,0.00049863,61]
[313440220,1707347494255,-500.0,0.00049863,61]
[313440221,1707347494265,-500.0,0.00049863,61]
[313440222,1707347494274,-575.16,0.00049863,61]
[313440223,1707347494284,-883.47,0.00049863,61]
[313440224,1707347494293,-791.41,0.00049863,61]
[313440225,1707347494303,-500.0,0.00049863,61]
[313440226,1707347494313,-567.21593284,0.00049863,61]
[313440227,1707347494322,-500.0,0.00049863,61]
[313440228,1707347494332,-750.3,0.00049863,61]
[313440229,1707347494342,-4830.04,0.00049863,61]
[313440230,1707347494351,-1911.94,0.00049863,61]
[313440231,1707347494361,-500.0,0.00049863,61]
[313440232,1707347494371,-4833.65,0.00049863,61]
[313440233,1707347494380,-1788.65,0.00049863,61]
[313440234,1707347494390,-15088.23,0.00049863,61]
[313440235,1707347494399,-688.92,0.00049863,61]
[313440236,1707347494408,-500.0,0.00049863,61]
[313440237,1707347494419,-648.02,0.00049863,61]
[313440238,1707347494428,-513.50309572,0.00049863,5]
[313440239,1707347494438,-500.0,0.00049863,61]
[313440240,1707347494448,-3910.43,0.00049863,61]
[313440241,1707347494458,-500.0,0.00049863,61]
[313440242,1707347494468,-999.05,0.00049863,61]
[313440243,1707347494477,-500.0,0.00049863,61]
[313440244,1707347494487,-1614.89,0.00049863,61]
[313440245,1707347494497,-1621.88,0.00049863,61]
[313440246,1707347494506,-500.0,0.00049863,61]
[313440247,1707347494516,-500.0,0.00049863,61]
[313440248,1707347494526,-1030.36,0.00049863,61]
[313440249,1707347494537,-1681.21,0.00049863,61]
[313440250,1707347494548,-903.74,0.00049863,61]
[313440251,1707347494558,-500.0,0.00049863,14]
[313440252,1707347494568,-500.0,0.00049863,61]
[313440253,1707347494578,-2159.11,0.00049863,61]
[313440254,1707347494588,-500.0,0.00049863,61]
[313440255,1707347494598,-1445.95,0.00049863,61]
[313440256,1707347494608,-500.0,0.00049863,61]
[313440257,1707347494617,-500.0,0.00049863,61]
[313440258,1707347494627,-500.0,0.00049863,61]
[313440259,1707347494637,-4095.08,0.00049863,61]
[313440260,1707347494647,-500.0,0.00049863,61]
[313440261,1707347494657,-2802.17,0.00049863,61]
[313440262,1707347494667,-780.28,0.00049863,61]
[313440263,1707347494677,-2677.59,0.00049863,61]
[313440264,1707347494686,-919.02,0.00049863,61]
[313440265,1707347494696,-647.45,0.00049863,61]
[313440266,1707347494705,-1279.22,0.00049863,61]
[313440267,1707347494715,-500.0,0.00049863,61]
[313440268,1707347494727,-500.0,0.00049863,61]
[313440269,1707347494736,-1317.09,0.00049863,61]
[313440270,1707347494751,-2242.72,0.00049863,61]
[313440271,1707347494761,-500.0,0.00049863,61]